Cogmind - Beta 16 @@@ ROGUE MODE // 2026.01.28 @ 04:07:29 Player: quak Result: Destroyed by D-53 Grenadier with Mini Grenade Launcher Performance ------------- Evolutions (0) 0 Regions Visited (4) 800 Robots Destroyed (15) 75 Value Destroyed (218) 218 Prototype IDs (23) 460 Alien Tech Used (0) 0 Bonus (300) 300 TOTAL SCORE: 1853 Bonus ------- Aligned with FarCom 300 Cogmind --------- Core Integrity 0/250 Matter 52/300 Energy 72/100 System Corruption 0% Temperature Cool (0) Movement Treading (240) Ox1 Location -9/Mines Parts ------- > --- POWER (1) -------- (None) > --- PROPULSION (2) --- Light Treads > --- UTILITY (2) ------ Large Storage Unit Trap Reconfigurator > --- WEAPON (2) ------- Grenade Launcher > --- INVENTORY (15) --- Ion Engine Light Treads Light Treads Heat Sink High-capacity Storage Unit Sensor Array Seismic Detector Seismic Detector Light Armor Plating Peak State ------------ > --- POWER ------------ Ion Engine > --- PROPULSION ------- Light Treads Light Treads > --- UTILITY ---------- Large Storage Unit Seismic Detector > --- WEAPON ----------- Assault Rifle Bore Cannon > --- INVENTORY -------- Ion Engine Light Treads Light Treads Light Treads Heat Sink High-capacity Storage Unit Sensor Array Seismic Detector Light Armor Plating Light Armor Plating Light Armor Plating Trap Reconfigurator Assault Rifle Grenade Launcher Grenade Launcher [Rating: 13] Favorites ----------- Power Ion Engine Engine Ion Engine Propulsion Light Treads Treads Light Treads Leg Aluminum Leg Utility Seismic Detector Device Seismic Detector Storage Large Storage Unit Protection Light Armor Plating Weapon Assault Rifle Energy Gun Medium Laser Ballistic Gun Assault Rifle Ballistic Cannon Bore Cannon Launcher Grenade Launcher Build | -11 -10 -10 -10 -9 ------- Run | Yrd Mat Min Exi Min Slots Evolved . | . . . . . Power . | . . . . . Propulsion . | . . . . . Utility . | . . . . . Weapon . | . . . . . Parts Attached 23 | 8 6 2 . 7 Power 2 | 1 . 1 . . Engine 2 | 1 . 1 . . Core . | . . . . . Reactor . | . . . . . Propulsion 6 | 2 3 . . 1 Treads 3 | . 2 . . 1 Leg 3 | 2 1 . . . Wheel . | . . . . . Hover . | . . . . . Flight . | . . . . . Utility 8 | 3 2 . . 3 Device 3 | 2 . . . 1 Storage 3 | 1 2 . . . Processor . | . . . . . Hackware . | . . . . . Protection 2 | . . . . 2 Artifact . | . . . . . Weapon 7 | 2 1 1 . 3 Energy Gun 1 | 1 . . . . Energy Cannon . | . . . . . Ballistic Gun 3 | 1 1 . . 1 Ballistic Cannon 1 | . . 1 . . Launcher 2 | . . . . 2 Special Weapon . | . . . . . Impact Weapon . | . . . . . Slashing Weapon . | . . . . . Piercing Weapon . | . . . . . Special Melee Weapon . | . . . . . Unidentified Prototypes . | . . . . . Parts Lost 9 | . . . . 9 Power 1 | . . . . 1 Propulsion 2 | . . . . 2 Utility 2 | . . . . 2 Weapon 4 | . . . . 4 Highest Loss Streak 9 | . . . . 9 To Critical Strikes . | . . . . . Average Backups 11 | 3 9 14 15 13 Power . | . 1 1 1 1 Propulsion 2 | 1 2 2 3 2 Utility 6 | . 5 7 8 7 Weapon 1 | . . 2 3 2 Tool/Special . | . . . . . Unused Backups 11 | . 2 1 1 7 Power 2 | . 1 . . 1 Propulsion 2 | . . . . 2 Utility 6 | . . 1 1 4 Weapon 1 | . 1 . . . Tool/Special . | . . . . . Average Slot Usage (%) 99 | . 100 100 100 81 Engine 13 | . 14 14 14 8 Treads 21 | . 13 28 28 24 Leg 6 | . 14 . . . Device 13 | . 14 14 14 8 Storage 14 | . 14 14 14 14 Energy Gun 2 | . 6 . . . Ballistic Gun 17 | . 21 15 14 8 Ballistic Cannon 7 | . . 12 14 8 Peak Build Rating 13 | 7 8 12 13 13 Average Rating 9 | 5 7 11 12 10 On Entrance 8 | . 7 8 12 13 Avg Prop Armor Cover (%) . | . . . . . Naked Turns . | . . . . . Heaviest Build 37 | 15 29 37 37 37 Greatest Support 40 | 20 40 40 40 40 Greatest Overweight (x) . | . . . . . Average Overweight (x) . | . . . . . Largest Inventory Capacity 15 | 8 15 15 15 15 Average Capacity 13 | 7 12 15 15 15 Most Carried 15 | 5 11 15 15 15 Average Carried 11 | 3 9 14 14 13 Final Capacity 15 | 8 15 15 15 15 Final Carried 15 | 5 11 15 15 9 Class Distribution -------------------- 100% | Mutant Dominant Class ---------------- Mutant | -10/Materials Mutant | -10/Mines Mutant | -10/Exiles Mutant | -9/Mines Resources | -11 -10 -10 -10 -9 ----------- Run | Yrd Mat Min Exi Min Matter Collected 693 | 243 170 280 . . Remotely . | . . . . . Salvage Created 338 | 73 243 . . 22 Parts 35 | 7 22 . . 6 Haulers Intercepted 2 | . 2 . . . Recyclers Shooed 1 | . . . . 1 Parts Field Recycled . | . . . . . Retrieved Matter . | . . . . . Parts Self-Destructed . | . . . . . Prevented . | . . . . . Parts Restored . | . . . . . Kills | -11 -10 -10 -10 -9 ------- Run | Yrd Mat Min Exi Min Combat Hostiles Destroyed 11 | . 5 . . 6 Guns 6 | . 5 . . 1 AOE 5 | . . . . 5 Classes Destroyed 9 | 1 4 . . 4 Worker 1 | . . . . 1 Builder 1 | . . . . 1 Tunneler 4 | 4 . . . . Hauler 2 | . 2 . . . Watcher 1 | . 1 . . . Swarmer 3 | . 3 . . . Grunt 2 | . 2 . . . Demolisher 1 | . . . . 1 Assembled 5 | . . . . 5 Best Kill Streak 5 | 4 3 . . 5 Combat Bots Only 5 | . 3 . . 5 Max Kills in Single Turn 3 | 1 1 . . 3 Gunslinging . | . . . . . Exploded 3 | . . . . 3 Melee . | . . . . . Uniques/NPCs Destroyed . | . . . . . Combat | -11 -10 -10 -10 -9 -------- Run | Yrd Mat Min Exi Min Hostile Shots Fired 79 | . 32 6 . 41 Missed 18 | . 9 4 . 5 Hits 61 | . 23 2 . 36 Melee 1 | . . . . 1 Projectile 60 | . 23 2 . 35 AOE 27 | . . . . 27 Damage Taken 1549 | . 286 26 . 1237 Core 268 | . 31 15 . 222 Absorbed by Shields . | . . . . . Core Remaining (%) 100 | 100 . . . . Volleys Fired 65 | 15 29 5 . 16 Largest 2 | 2 2 2 . 2 Hottest 70 | 70 70 68 . 68 Shots Fired 124 | 30 58 10 . 26 Gun 101 | 30 58 5 . 8 Cannon 12 | . . 5 . 7 Launcher 11 | . . . . 11 Special . | . . . . . Kinetic 78 | 15 38 10 . 15 Thermal 35 | 15 20 . . . Explosive 11 | . . . . 11 Electromagnetic . | . . . . . Robot Hit Streak 14 | 5 14 7 . 4 Robot Miss Streak 5 | 2 5 2 . 4 Penetration Max . | . . . . . Secondary Targets 1 | . 1 . . . Max Gunslinging Chain 1 | . 1 . . . Shots Hit Robots 76 | 18 37 7 . 14 Core Hits 49 | 4 11 2 . 32 Critical Kills . | . . . . . Critical Parts Destroyed 4 | . 2 2 . . Critical Strikes 6 | 1 2 2 . 1 Burn 1 | 1 . . . . Destroy 5 | . 2 2 . 1 Melee Attacks . | . . . . . Impact . | . . . . . Slashing . | . . . . . Piercing . | . . . . . Sneak Attacks . | . . . . . Combat Hostiles . | . . . . . Follow-up Attacks . | . . . . . Damage Inflicted 1522 | 266 452 117 . 687 Guns 816 | 258 446 48 . 64 Cannons 117 | . . 69 . 48 Explosions 575 | . . . . 575 Melee . | . . . . . Ramming 14 | 8 6 . . . Kinetic 670 | 181 260 117 . 112 Thermal 263 | 77 186 . . . Explosive 575 | . . . . 575 Electromagnetic . | . . . . . Impact . | . . . . . Slashing . | . . . . . Piercing . | . . . . . Highest Corruption . | . . . . . Average Corruption . | . . . . . Corruption Purged . | . . . . . Corruption Blocked . | . . . . . Overload Shots . | . . . . . Overflow Damage 19 | . . . . 19 Projectiles . | . . . . . Explosions 19 | . . . . 19 Melee . | . . . . . Knockbacks 3 | . . 3 . . Impact . | . . . . . Kinetic 3 | . . 3 . . Secondary . | . . . . . Self-Inflicted Damage 3 | . . . . 3 Shots 1 | . . . . 1 Rammed 1 | . 1 . . . Targets Rammed 2 | 1 1 . . . Kicked 1 | 1 . . . . Crushed . | . . . . . Highest Temperature 111 | 54 111 39 . 25 Average Temperature 27 | 23 36 18 . 12 Received Heat Transfer 81 | . 66 15 . . Siege Activations . | . . . . . Martial Activations . | . . . . . Shielding Activations . | . . . . . Robots Disrupted . | . . . . . Combat Hostiles . | . . . . . Robots Corrupted . | . . . . . Combat Hostiles . | . . . . . Parts Fried . | . . . . . Impact Corruptions . | . . . . . Robots Melted . | . . . . . Combat Hostiles . | . . . . . Parts Melted 2 | 1 1 . . . Heat Transferred 851 | 296 555 . . . Parts Sabotaged . | . . . . . Parts Stolen . | . . . . . Parts Stripped . | . . . . . Power Chain Reactions . | . . . . . Alert | -11 -10 -10 -10 -9 ------- Run | Yrd Mat Min Exi Min Maximum Alert Level . | . . . . . Low Security (%) 100 | 100 100 100 . 100 Level 1 . | . . . . . Level 2 . | . . . . . Level 3 . | . . . . . Level 4 . | . . . . . Level 5 . | . . . . . High Security . | . . . . . Max Security . | . . . . . Peak Influence 60 | 10 60 2 . 20 Initial . | . . . . . Average 6 | 1 11 . . 5 Influence Increases 240 | 20 164 3 . 53 Destroy 0b10 Robot/C 120 | . 100 . . 20 Destroy 0b10 Robot/NC 45 | 20 15 . . 10 Destroy Leader 26 | . 26 . . . Successful Hack 23 | . 23 . . . Destroy Structure 26 | . . 3 . 23 Influence Decreases 230 | 20 164 3 . 43 Time Decay 207 | 20 164 3 . 20 Lost Part 23 | . . . . 23 Squads Dispatched . | . . . . . Investigation . | . . . . . Extermination . | . . . . . Reinforcement . | . . . . . Assault . | . . . . . Garrison . | . . . . . Intercept . | . . . . . Searches Triggered . | . . . . . Construction Impeded . | . . . . . Haulers Reinforced . | . . . . . Active Scanning Responses . | . . . . . Cargo Convoy Interrupts . | . . . . . Stealth | -11 -10 -10 -10 -9 --------- Run | Yrd Mat Min Exi Min Distress Signals 1 | . 1 . . . Communications Jammed . | . . . . . Distress Signals . | . . . . . Times Spotted 35 | . 12 3 . 20 Peak Tracking Total 20 | . 5 3 . 20 Tactical Retreats . | . . . . . Traps | -11 -10 -10 -10 -9 ------- Run | Yrd Mat Min Exi Min Traps Triggered 1 | . 1 . . . Indirectly . | . . . . . Trap Hack Attempts . | . . . . . Triggered . | . . . . . Disarmed . | . . . . . Reprogrammed . | . . . . . Reused . | . . . . . Traps Extracted . | . . . . . Installed . | . . . . . Triggered . | . . . . . Machines | -11 -10 -10 -10 -9 ---------- Run | Yrd Mat Min Exi Min Machines Disabled . | . . . . . Max in Single Turn . | . . . . . Machines Repaired . | . . . . . Machines Dismantled . | . . . . . Machines Sabotaged . | . . . . . Overloaded Fab Kills . | . . . . . Hacking | -11 -10 -10 -10 -9 --------- Run | Yrd Mat Min Exi Min Machines Accessed 7 | . 6 . 1 . Terminals 5 | . 5 . . . Fabricators . | . . . . . Repair Stations . | . . . . . Recycling Units 1 | . 1 . . . Scanalyzers . | . . . . . Garrison Access . | . . . . . Total Hacks 14 | . 13 . 1 . Successful 6 | . 5 . 1 . Failed 8 | . 8 . . . Catastrophic 3 | . 3 . . . Database Lockouts . | . . . . . Manual 10 | . 9 . 1 . Terminals 12 | . 12 . . . Fabricators . | . . . . . Repair Stations . | . . . . . Recycling Units 1 | . 1 . . . Scanalyzers . | . . . . . Garrison Access . | . . . . . Terminal Hacks 2 | . 1 . 1 . Branch Access Points 1 | . 1 . . . Proto ID Catalog 1 | . . . 1 . Fabricator Hacks . | . . . . . Repair Station Hacks . | . . . . . Recycling Unit Hacks 1 | . 1 . . . Report Inventory 1 | . 1 . . . Scanalyzer . | . . . . . Garrison Access Hacks . | . . . . . Unauthorized Hacks 3 | . 3 . . . Terminals 3 | . 3 . . . Botnet 3 | . 3 . . . Fabricators . | . . . . . Repair Stations . | . . . . . Recycling Units . | . . . . . Scanalyzers . | . . . . . Garrison Access . | . . . . . Data Cores Recovered . | . . . . . Used . | . . . . . Hacking Detections 5 | . 5 . . . Full Trace Events . | . . . . . Feedback Events . | . . . . . Feedback Blocked . | . . . . . Robot Schematics Acquired . | . . . . . Robots Built . | . . . . . Authchips . | . . . . . Time . | . . . . . Total Robot Build Rating . | . . . . . Part Schematics Acquired . | . . . . . Parts Built . | . . . . . Authchips . | . . . . . Time . | . . . . . Total Part Build Rating . | . . . . . Part Studies Acquired . | . . . . . Parts Repaired . | . . . . . Time . | . . . . . Parts Recycled . | . . . . . Recycled Matter . | . . . . . Retrieved Matter . | . . . . . Retrieved Components . | . . . . . Parts Scanalyzed . | . . . . . Part Schematics Acquired . | . . . . . Parts Damaged . | . . . . . Bothacking | -11 -10 -10 -10 -9 ------------ Run | Yrd Mat Min Exi Min Used RIF Installer . | . . . . . Robots Hacked . | . . . . . Non-combat . | . . . . . Combat . | . . . . . Robot Hacks Applied . | . . . . . Relay Couplers Released . | . . . . . Fabnet Peak Effective % . | . . . . . Robots Rewired . | . . . . . Allies Hacked . | . . . . . Hacks Repelled . | . . . . . Allies | -11 -10 -10 -10 -9 -------- Run | Yrd Mat Min Exi Min Total Allies 1 | . . 1 . . Largest Group 1 | . . 1 . . Highest-Rated Group 31 | . . 31 . . Highest-Rated Ally 31 | . . 31 . . Total Orders . | . . . . . Ally Attacks . | . . . . . Total Damage . | . . . . . Kills . | . . . . . Allies Corrupted . | . . . . . Allies Melted . | . . . . . Intel | -11 -10 -10 -10 -9 ------- Run | Yrd Mat Min Exi Min Active Infowar (turns) 1840 | 49 796 598 372 25 Seismic 1840 | 49 796 598 372 25 Robot Analysis Total . | . . . . . Derelict Logs Recovered 1 | . . 1 . . Drone Launches . | . . . . . Drone Recoveries . | . . . . . Exploration | -11 -10 -10 -10 -9 ------------- Run | Yrd Mat Min Exi Min Turns Passed 1972 | 146 796 598 372 60 Spaces Moved 1149 | 70 490 353 232 4 Core 1 | 1 . . . . Treads 806 | . 217 353 232 4 Legs 342 | 69 273 . . . Wheels . | . . . . . Hover . | . . . . . Flight . | . . . . . Fastest Speed 50 | 50 120 160 160 160 Average Speed 147 | 119 137 160 160 160 Slowest Speed 160 | 120 160 160 160 160 Overloaded Moves . | . . . . . Propulsion Burnouts . | . . . . . Robots Hopped . | . . . . . Potential Cave-ins . | . . . . . Cave-ins Triggered . | . . . . . Exploration Rate (%) 49 | 5 81 82 68 11 Regions Visited 4 Branch Regions 3 Pre-discovered Areas . | . . . . . Known Exits Taken 1 | . 1 . . . Unknown Exits Taken 3 | 1 . 1 1 . Scrap Searched 1 | . . 1 . . Spaces Dug . | . . . . . Terrain Destroyed 36 | . . 4 . 32 Melee . | . . . . . Projectile 10 | . . 4 . 6 AOE 26 | . . . . 26 Terrain Rammed . | . . . . . Walls Destroyed . | . . . . . Machines Disabled . | . . . . . Actions | -11 -10 -10 -10 -9 --------- Run | Yrd Mat Min Exi Min Total 1297 | 98 557 378 233 31 Wait 24 | 1 13 10 . . Move 1145 | 69 489 352 231 4 Hop . | . . . . . Pick Up 22 | 4 11 6 1 . Fast Attach 8 | 7 1 . . . Attach 6 | . . . . 6 Detach . | . . . . . Swap 13 | 1 5 2 . 5 Drop 12 | . 8 3 1 . Fire 65 | 15 29 5 . 16 Melee . | . . . . . Ram . | . . . . . Kick 1 | 1 . . . . Crush 1 | . 1 . . . Escape Stasis . | . . . . . Rewire . | . . . . . Trap . | . . . . . Miscellaneous . | . . . . . Route ------- -11/Scrapyard -10/Materials (discovered 4 exits: *Mat x3 / *Min) -10/Mines (discovered 3 exits: *Mat x2 / *Exi) -10/Exiles (discovered 2 exits: [*Min x2]) -9/Mines History --------- Turn | Location | Event 17 | -11/Scrapyard | Discovered new exit (range 14) 147 | -11/Scrapyard | Entered Materials 274 | -10/Materials | Discovered new exit (range 14) 318 | -10/Materials | Build established: Mutant 436 | -10/Materials | Discovered new exit (range 6) 476 | -10/Materials | Discovered new exit (range 5) 625 | -10/Materials | Discovered new exit (range 3) 701 | -10/Materials | Identified exit to Mines 943 | -10/Materials | Entered Mines 982 | -10/Mines | A weapon hastily lodged in a ceiling crevice suddenly fell to the ground 1024 | -10/Mines | Joined a pair of Derelicts in attacking an 0b10 outpost 1229 | -10/Mines | Escorted by a lone wolf Derelict 1415 | -10/Mines | Discovered new exit (range 13) 1422 | -10/Mines | Identified exit to Materials 1474 | -10/Mines | Excavation squad dispatched 1474 | -10/Mines | A large section of the Mines collapsed 1487 | -10/Mines | Deemed a non-threat by the Exiles lab entrance 1489 | -10/Mines | Discovered new exit (range 5) 1541 | -10/Mines | Entered Exiles 1562 | -10/Exiles | Discovered new exit (range 15) 1581 | -10/Exiles | Met 8R-AWN 1609 | -10/Exiles | Met EX-HEX 1652 | -10/Exiles | Met EX-BIN 1669 | -10/Exiles | Aligned with FarCom system 1671 | -10/Exiles | Given EX-Vault access code 1708 | -10/Exiles | Opened EX-Vault 1718 | -10/Exiles | Found Trap Reconfigurator 1749 | -10/Exiles | Warned to stay clear of 0b10 Research branches 1774 | -10/Exiles | Exiles lab attacked by MAIN.C 1897 | -10/Exiles | Discovered new exit (range 12) 1913 | -10/Exiles | Left Exiles lab with Trap Reconfigurator 1913 | -10/Exiles | Entered Mines 1914 | -9/Mines | Assembled infested the area 1956 | -9/Mines | Core integrity fell below 50% 1965 | -9/Mines | Core integrity fell below 20% 1973 | -9/Mines | Destroyed by D-53 Grenadier with Mini Grenade Launcher Last Messages --------------- 01960_ Assault Rifle destroyed. 01960_ U-05 Engineer lays Concrete. 01961_ U-05 Engineer builds a Wall. 01961_ K-01 Serf collects debris. 01961_ U-05 Engineer lays Concrete. 01961_ K-01 Serf destroyed. 01962_ The unstable cave ceiling collapses. 01962_ U-05 Engineer lays Concrete. 01963_ Destroyed Welding Torch. 01964_ The unstable cave ceiling collapses. 01964_ U-05 Engineer lays Concrete. 01965_ The unstable cave ceiling collapses. 01965_ U-05 Engineer lays Concrete. 01965_ Lgt. Treads destroyed. 01965_ U-05 Engineer destroyed. 01967_ The unstable cave ceiling collapses. 01969_ Grenade Launcher destroyed. 01971_ D-53 Grenadier destroyed. 01973_ The unstable cave ceiling collapses. 01973_ U-05 Engineer lays Concrete. Map ----- +----------------------------------------------------+ | | | | | | | | | | | ????????????????????????????????????????????????? | | ????????????????????????????????????????????????? | | ????????????????????????????????????????????????? | | ????????????????????????????????????????????????? | | ????????????????????????????????????????????????? | | ?????????????????????? # ??????????????????????? | | ???????????????????? ## # ??????????????????????? | | ?????????????????#; # ??????????????????????? | | ??????????????? < #?????????????????????? | | ?????????????##### ! ?????????????????????? | | ????????????? u % = ?????????????????????? | | ???????????? %= # ?????????????????????? | | ????????????? ?????????????????????? | | ??????????????# d ##??###???????????????? | | ??????????????# # #? ????????????????? | | ??????????????# ## #?????????????????? | | ??????????????## #?????????????????? | | ?????????????## #???? #??????????? | | ????????????## # #??????????? | | ????????????# ????????????? | | ??????????????????# @ #??????????????????? | | ??????????????????## # #??????????????????? | | ???????????????????# #?????????????????? | | ???????????????????## #?????????????????? | | ????????????????????## ###?????????????????? | | ?????????????????????# % #???????????????????? | | ?????????????????????# #???????????????????? | | ?????????????????????# #???????????????????? | | ?????????????????????########???????????????????? | | ????????????????????????????????????????????????? | | ????????????????????????????????????????????????? | | ????????????????????????????????????????????????? | | ????????????????????????????????????????????????? | | ????????????????????????????????????????????????? | | ????????????????????????????????????????????????? | | ????????????????????????????????????????????????? | | ????????????????????????????????????????????????? | | ????????????????????????????????????????????????? | | ????????????????????????????????????????????????? | | ????????????????????????????????????????????????? | | ????????????????????????????????????????????????? | | ????????????????????????????????????????????????? | | ????????????????????????????????????????????????? | | ????????????????????????????????????????????????? | | ????????????????????????????????????????????????? | +----------------------------------------------------+ Best States ------------- Heat Dissipation 25 Energy Generation 10 Energy Capacity 250 Matter Stores 300 Matter Capacity 300 Sight Range 16 Terrain Scan Density 10 Armor Coverage 150 Evasion (%) 55 Recoil Reduction 2 Item Schematics ----------------- None Robot Schematics ------------------ None Fabricated ------------ Nothing Repaired ---------- Nothing Studied --------- None Alien Tech Used ----------------- None Achievements -------------- None Challenges ------------ None Game ------ Seed DamperSignalShovel Manual? 0 Play Time 00:15:50 Cumulative 28.6 hours Start 2026.01.28 @ 03:53:29 End 2026.01.28 @ 04:07:29 Sessions 1 Manual Loads 0 Difficulty Rogue Special Mode None Game No. 57 Rogue 57 Adventurer 0 Explorer 0 Win Type - Total 3 Types 3/0/0/0/0/0/0/0/0/0 Lore% 22 Gallery% 22 Achievement% 21 Wizard Run 0 Options --------- Layout 1 ASCII 0 Keyboard 1 Movement Vi Keybinds 0 Fullscreen 1 Font 32/SmallcapsGlow Map View 50x40 Zoom Use 0% Tactical HUD 1 Map Filters NONE Filters NONE Steam 1 RUN: 076bdbc7-c528-431e-aac2-04cff27ddaf9